[Event "Early-Titled-Tuesday-Blitz-October-24-2023"]
[Site "Chess.com"]
[Date "2023.10.24"]
[Round "2"]
[White "MokshAD1603"]
[Black "Krakozia"]
[Result "0-1"]
[WhiteElo "2600"]
[BlackElo "2973"]
[TimeControl "180+1"]
[EndTime "8:18:47 PDT"]
[Termination "Krakozia won by resignation"]

1. d4 {[%clk 0:02:57.4]} 1... Nf6 {[%clk 0:02:58.8]} 2. c4 {[%clk 0:02:56.6]}
2... e6 {[%clk 0:02:58.7]} 3. Nf3 {[%clk 0:02:56.2]} 3... Bb4+ {[%clk
0:02:58.4]} 4. Nbd2 {[%clk 0:02:54.5]} 4... b6 {[%clk 0:02:57.7]} 5. a3 {[%clk
0:02:52.5]} 5... Bxd2+ {[%clk 0:02:57.5]} 6. Qxd2 {[%clk 0:02:53.4]} 6... O-O
{[%clk 0:02:55.3]} 7. e3 {[%clk 0:02:53.8]} 7... d5 {[%clk 0:02:55.3]} 8. Be2
{[%clk 0:02:52.8]} 8... dxc4 {[%clk 0:02:54.2]} 9. Bxc4 {[%clk 0:02:50.7]} 9...
Bb7 {[%clk 0:02:54.8]} 10. Be2 {[%clk 0:02:47]} 10... Qe7 {[%clk 0:02:53.8]} 11.
O-O {[%clk 0:02:47.5]} 11... Rd8 {[%clk 0:02:50.7]} 12. b4 {[%clk 0:02:46.1]}
12... c5 {[%clk 0:02:48.5]} 13. bxc5 {[%clk 0:02:43.7]} 13... bxc5 {[%clk
0:02:49.4]} 14. Bb2 {[%clk 0:02:43.6]} 14... Nc6 {[%clk 0:02:43]} 15. Qc2 {[%clk
0:02:25.8]} 15... cxd4 {[%clk 0:02:42.5]} 16. Nxd4 {[%clk 0:02:25.8]} 16... Nxd4
{[%clk 0:02:41]} 17. Bxd4 {[%clk 0:02:26.7]} 17... e5 {[%clk 0:02:34.6]} 18. Bc5
{[%clk 0:02:23.7]} 18... Qe6 {[%clk 0:02:29.9]} 19. Rfc1 {[%clk 0:02:23.5]}
19... Rac8 {[%clk 0:02:21.9]} 20. Qa4 {[%clk 0:02:21.9]} 20... Bc6 {[%clk
0:01:35.6]} 21. Qxa7 {[%clk 0:01:57.4]} 21... Ra8 {[%clk 0:01:18.5]} 22. Qe7
{[%clk 0:01:34.8]} 22... Qf5 {[%clk 0:01:17.6]} 23. Rd1 {[%clk 0:01:23.4]} 23...
Re8 {[%clk 0:01:01.5]} 24. Qc7 {[%clk 0:01:22.3]} 24... Rac8 {[%clk 0:00:56.2]}
25. Qa5 {[%clk 0:01:19.1]} 25... Ne4 {[%clk 0:00:40.4]} 26. f3 {[%clk
0:01:03.5]} 26... Nxc5 {[%clk 0:00:39.9]} 27. Qxc5 {[%clk 0:01:04.4]} 27... Ba4
{[%clk 0:00:39.5]} 28. Qd6 {[%clk 0:00:39.1]} 28... Bxd1 {[%clk 0:00:39.2]} 29.
Rxd1 {[%clk 0:00:40]} 29... h5 {[%clk 0:00:34.3]} 30. a4 {[%clk 0:00:36.1]}
30... Qc2 {[%clk 0:00:32]} 31. Bb5 {[%clk 0:00:36.6]} 31... Rf8 {[%clk
0:00:25.6]} 32. a5 {[%clk 0:00:27.2]} 32... Qc5 {[%clk 0:00:21.6]} 33. Qd5
{[%clk 0:00:20.1]} 33... Rfd8 {[%clk 0:00:18.4]} 34. Qxd8+ {[%clk 0:00:18.3]}
34... Rxd8 {[%clk 0:00:19.3]} 35. Rxd8+ {[%clk 0:00:18.6]} 35... Kh7 {[%clk
0:00:20.2]} 36. Bd3+ {[%clk 0:00:19.4]} 36... g6 {[%clk 0:00:19.9]} 37. a6
{[%clk 0:00:20.3]} 37... Qxe3+ {[%clk 0:00:18.2]} 38. Kf1 {[%clk 0:00:20.9]}
38... Qb6 {[%clk 0:00:18]} 39. Rd7 {[%clk 0:00:20.9]} 39... Qe6 {[%clk
0:00:10.2]} 40. a7 {[%clk 0:00:20]} 40... Qxd7 {[%clk 0:00:10.1]} 41. a8=Q
{[%clk 0:00:20.5]} 41... Qxd3+ {[%clk 0:00:10.7]} 42. Kf2 {[%clk 0:00:21.2]}
42... Qd2+ {[%clk 0:00:11]} 43. Kf1 {[%clk 0:00:21.3]} 43... Qd1+ {[%clk
0:00:11.6]} 44. Kf2 {[%clk 0:00:21.8]} 44... Qc2+ {[%clk 0:00:12]} 45. Kf1
{[%clk 0:00:21.8]} 45... Qc4+ {[%clk 0:00:11.7]} 46. Kf2 {[%clk 0:00:21.7]}
46... Kg7 {[%clk 0:00:12.3]} 47. Qa5 {[%clk 0:00:20.7]} 47... Qd4+ {[%clk
0:00:12.1]} 48. Kf1 {[%clk 0:00:21.4]} 48... h4 {[%clk 0:00:12.5]} 49. Qe1
{[%clk 0:00:20.5]} 49... Qd3+ {[%clk 0:00:12.4]} 50. Kf2 {[%clk 0:00:20.5]}
50... Qd4+ {[%clk 0:00:13.3]} 51. Kf1 {[%clk 0:00:20.5]} 51... Qf4 {[%clk
0:00:13.1]} 52. Kg1 {[%clk 0:00:19.9]} 52... h3 {[%clk 0:00:11.6]} 53. Qe2
{[%clk 0:00:17.4]} 53... hxg2 {[%clk 0:00:10.7]} 54. Kxg2 {[%clk 0:00:18.3]}
54... Kf6 {[%clk 0:00:10.2]} 55. Qa6+ {[%clk 0:00:18]} 55... Kg7 {[%clk
0:00:10.6]} 56. Qe2 {[%clk 0:00:18.1]} 56... Kh6 {[%clk 0:00:10.7]} 57. Qa2
{[%clk 0:00:16.6]} 57... e4 {[%clk 0:00:09.8]} 58. fxe4 {[%clk 0:00:15.9]} 58...
Qxe4+ {[%clk 0:00:10.7]} 59. Kg1 {[%clk 0:00:16.6]} 59... Qf4 {[%clk 0:00:10.4]}
60. Qa8 {[%clk 0:00:15.2]} 60... Kg7 {[%clk 0:00:10.3]} 61. Qd5 {[%clk
0:00:14.4]} 61... Qf6 {[%clk 0:00:10.9]} 62. Qb7 {[%clk 0:00:14.2]} 62... g5
{[%clk 0:00:10.8]} 63. Qd5 {[%clk 0:00:14.1]} 63... Qf4 {[%clk 0:00:10.9]} 64.
Kg2 {[%clk 0:00:14.5]} 64... Qg4+ {[%clk 0:00:10.6]} 65. Kf2 {[%clk 0:00:15]}
65... Qf4+ {[%clk 0:00:11.5]} 66. Kg2 {[%clk 0:00:15.5]} 66... Qf6 {[%clk
0:00:10.4]} 67. Qb7 {[%clk 0:00:15.4]} 67... Kg6 {[%clk 0:00:10.5]} 68. Qe4+
{[%clk 0:00:15.5]} 68... Qf5 {[%clk 0:00:10.6]} 69. Qc6+ {[%clk 0:00:16.1]}
69... Qe6 {[%clk 0:00:11.3]} 70. Qa8 {[%clk 0:00:15]} 70... f5 {[%clk
0:00:10.1]} 71. Qb7 {[%clk 0:00:13.4]} 71... Qe4+ {[%clk 0:00:09.8]} 72. Qxe4
{[%clk 0:00:12.3]} 72... fxe4 {[%clk 0:00:10.7]} 73. Kf2 {[%clk 0:00:12.4]}
73... Kf5 {[%clk 0:00:11.3]} 74. Ke3 {[%clk 0:00:13.1]} 74... g4 {[%clk
0:00:08.2]} 75. Ke2 {[%clk 0:00:12.6]} 75... Kf4 {[%clk 0:00:08.5]} 76. Kf2
{[%clk 0:00:13]} 76... e3+ {[%clk 0:00:09.1]} 77. Ke2 {[%clk 0:00:13.7]} 77...
Ke4 {[%clk 0:00:10]} 78. Ke1 {[%clk 0:00:14.1]} 78... Kf3 {[%clk 0:00:10.2]} 79.
Kf1 {[%clk 0:00:14.6]} 79... e2+ {[%clk 0:00:10.2]} 80. Ke1 {[%clk 0:00:15.1]}
80... Ke3 {[%clk 0:00:10.3]} 81. h3 {[%clk 0:00:14.5]} 81... g3 {[%clk
0:00:10.3]} 0-1

[Event "Early-Titled-Tuesday-Blitz-October-24-2023"]
[Site "Chess.com"]
[Date "2023.10.24"]
[Round "2"]
[White "WPWPWP-2015"]
[Black "Witik"]
[Result "0-1"]
[WhiteElo "2554"]
[BlackElo "2813"]
[TimeControl "180+1"]
[EndTime "8:19:16 PDT"]
[Termination "Witik won by resignation"]

1. e4 {[%clk 0:03:00.9]} 1... c5 {[%clk 0:02:58.4]} 2. Nf3 {[%clk 0:03:00.2]}
2... d6 {[%clk 0:02:58.9]} 3. d4 {[%clk 0:03:00.1]} 3... cxd4 {[%clk 0:02:59.8]}
4. Nxd4 {[%clk 0:03:00.6]} 4... Nf6 {[%clk 0:03:00.3]} 5. Nc3 {[%clk 0:03:01.1]}
5... a6 {[%clk 0:03:00.8]} 6. h3 {[%clk 0:03:01.3]} 6... e5 {[%clk 0:02:59.1]}
7. Nde2 {[%clk 0:03:01.1]} 7... h5 {[%clk 0:02:57.5]} 8. Be3 {[%clk 0:03:00.5]}
8... b5 {[%clk 0:02:50.9]} 9. Nd5 {[%clk 0:02:55.5]} 9... Nbd7 {[%clk
0:02:41.5]} 10. Nec3 {[%clk 0:02:47.5]} 10... Bb7 {[%clk 0:02:40]} 11. a3 {[%clk
0:02:41.4]} 11... Be7 {[%clk 0:02:17.5]} 12. Be2 {[%clk 0:02:40.9]} 12... h4
{[%clk 0:02:01.8]} 13. O-O {[%clk 0:02:39.8]} 13... Nxd5 {[%clk 0:01:58.3]} 14.
Nxd5 {[%clk 0:02:35.9]} 14... Rc8 {[%clk 0:01:58.9]} 15. Nxe7 {[%clk 0:02:28.5]}
15... Qxe7 {[%clk 0:01:58.6]} 16. f3 {[%clk 0:02:28.6]} 16... Nf6 {[%clk
0:01:54.5]} 17. Qd2 {[%clk 0:02:25.5]} 17... d5 {[%clk 0:01:53]} 18. exd5 {[%clk
0:01:29.9]} 18... Nxd5 {[%clk 0:01:53]} 19. c3 {[%clk 0:01:28.6]} 19... Rd8
{[%clk 0:01:40.7]} 20. Rfe1 {[%clk 0:01:17.7]} 20... O-O {[%clk 0:01:32.9]} 21.
Bf1 {[%clk 0:01:07.3]} 21... Nf4 {[%clk 0:01:22.4]} 22. Qf2 {[%clk 0:00:58.1]}
22... Qg5 {[%clk 0:01:18.5]} 23. Kh2 {[%clk 0:00:57.2]} 23... Rfe8 {[%clk
0:01:02.1]} 24. Rad1 {[%clk 0:00:55.6]} 24... Rxd1 {[%clk 0:00:52]} 25. Rxd1
{[%clk 0:00:55.6]} 25... Re6 {[%clk 0:00:52.4]} 26. Bd3 {[%clk 0:00:47.7]} 26...
Qf6 {[%clk 0:00:41.8]} 27. Bc2 {[%clk 0:00:42.7]} 27... g5 {[%clk 0:00:33.6]}
28. Rd7 {[%clk 0:00:39.9]} 28... Bc6 {[%clk 0:00:33.3]} 29. Ra7 {[%clk
0:00:37.9]} 29... Bd5 {[%clk 0:00:32.8]} 30. Rd7 {[%clk 0:00:36.8]} 30... Rd6
{[%clk 0:00:26]} 31. Rxd6 {[%clk 0:00:29.9]} 31... Qxd6 {[%clk 0:00:26.9]} 32.
Kg1 {[%clk 0:00:30.1]} 32... Bc4 {[%clk 0:00:23.3]} 33. Qd2 {[%clk 0:00:27.8]}
33... Qe7 {[%clk 0:00:16.3]} 34. Be4 {[%clk 0:00:24.9]} 34... Kg7 {[%clk
0:00:16.2]} 35. Kh2 {[%clk 0:00:21.4]} 35... Qf6 {[%clk 0:00:11.7]} 36. Bc2
{[%clk 0:00:19.5]} 36... Be6 {[%clk 0:00:09.2]} 37. a4 {[%clk 0:00:19]} 37...
Bc4 {[%clk 0:00:08.5]} 38. axb5 {[%clk 0:00:18.1]} 38... axb5 {[%clk 0:00:09.4]}
39. b3 {[%clk 0:00:18.1]} 39... Be6 {[%clk 0:00:09.9]} 40. Bc5 {[%clk
0:00:16.4]} 40... Nh5 {[%clk 0:00:06.8]} 41. Kg1 {[%clk 0:00:15.2]} 41... Nf4
{[%clk 0:00:04.8]} 42. Qd6 {[%clk 0:00:14.8]} 42... Bf5 {[%clk 0:00:04.6]} 43.
Qf8+ {[%clk 0:00:11.5]} 43... Kh7 {[%clk 0:00:05]} 44. Bxf5+ {[%clk 0:00:10.7]}
44... Qxf5 {[%clk 0:00:05.9]} 45. Kh2 {[%clk 0:00:10.4]} 45... Ne6 {[%clk
0:00:04]} 46. Qe7 {[%clk 0:00:09.5]} 46... Qf4+ {[%clk 0:00:04]} 47. Kh1 {[%clk
0:00:09.8]} 47... Kg6 {[%clk 0:00:02.8]} 48. Qe8 {[%clk 0:00:03.4]} 48... Qc1+
{[%clk 0:00:02.5]} 49. Kh2 {[%clk 0:00:03.6]} 49... Nxc5 {[%clk 0:00:03]} 50.
Qg8+ {[%clk 0:00:03.3]} 50... Kf6 {[%clk 0:00:03.3]} 51. Qd8+ {[%clk 0:00:03.3]}
51... Ke6 {[%clk 0:00:03.6]} 52. Qb6+ {[%clk 0:00:03.4]} 52... Kd5 {[%clk
0:00:03.4]} 53. Qd8+ {[%clk 0:00:03.7]} 53... Kc6 {[%clk 0:00:03.6]} 54. Qc8+
{[%clk 0:00:04.2]} 54... Kb6 {[%clk 0:00:03.5]} 55. Qd8+ {[%clk 0:00:04.3]}
55... Kb7 {[%clk 0:00:03.3]} 56. Qe7+ {[%clk 0:00:04.2]} 56... Kc6 {[%clk
0:00:03.9]} 57. Qe8+ {[%clk 0:00:04.3]} 57... Nd7 {[%clk 0:00:04.5]} 58. Qc8+
{[%clk 0:00:04.3]} 58... Kd6 {[%clk 0:00:05.1]} 59. Qa6+ {[%clk 0:00:04.3]}
59... Ke7 {[%clk 0:00:05.3]} 60. Qxb5 {[%clk 0:00:04.5]} 60... Qxc3 {[%clk
0:00:05.9]} 61. Qd5 {[%clk 0:00:04.2]} 61... Qd4 {[%clk 0:00:06.1]} 62. Qb7
{[%clk 0:00:03.9]} 62... Qf4+ {[%clk 0:00:06.2]} 63. Kh1 {[%clk 0:00:03.9]}
63... Qc1+ {[%clk 0:00:06.7]} 64. Kh2 {[%clk 0:00:04.2]} 64... Qc5 {[%clk
0:00:06.8]} 65. Kh1 {[%clk 0:00:03.8]} 65... f5 {[%clk 0:00:06.5]} 66. Kh2
{[%clk 0:00:03.7]} 66... Qc1 {[%clk 0:00:06.3]} 67. Qa8 {[%clk 0:00:02.9]} 67...
Qf4+ {[%clk 0:00:06.5]} 68. Kh1 {[%clk 0:00:03.1]} 68... Qc1+ {[%clk 0:00:06.5]}
69. Kh2 {[%clk 0:00:03.5]} 69... Qc7 {[%clk 0:00:07.1]} 70. Kh1 {[%clk
0:00:03.2]} 70... Qd6 {[%clk 0:00:06.4]} 71. Qh8 {[%clk 0:00:03.2]} 71... Qf6
{[%clk 0:00:06.2]} 72. Qg8 {[%clk 0:00:03]} 72... Kd6 {[%clk 0:00:06.4]} 73. Qc4
{[%clk 0:00:02.9]} 73... Nc5 {[%clk 0:00:05.5]} 74. Qb5 {[%clk 0:00:02.8]} 74...
Nd7 {[%clk 0:00:05.4]} 75. Qa6+ {[%clk 0:00:02.8]} 75... Ke7 {[%clk 0:00:05.7]}
76. Qc4 {[%clk 0:00:03]} 76... Qe6 {[%clk 0:00:06.3]} 77. Qb4+ {[%clk
0:00:03.2]} 77... Kf7 {[%clk 0:00:06.6]} 78. Qb7 {[%clk 0:00:02.8]} 78... e4
{[%clk 0:00:06.9]} 79. fxe4 {[%clk 0:00:02.8]} 79... fxe4 {[%clk 0:00:07.8]} 80.
Kg1 {[%clk 0:00:03.3]} 80... e3 {[%clk 0:00:08.3]} 81. Kf1 {[%clk 0:00:03.8]}
81... Ke7 {[%clk 0:00:07.5]} 82. Ke2 {[%clk 0:00:03.9]} 82... Qe5 {[%clk
0:00:08.1]} 83. Qb4+ {[%clk 0:00:03.9]} 83... Nc5 {[%clk 0:00:07.1]} 84. Qc4
{[%clk 0:00:02.9]} 84... Kf6 {[%clk 0:00:06.6]} 85. Qb5 {[%clk 0:00:02.8]} 85...
Ne6 {[%clk 0:00:07.2]} 86. Qc4 {[%clk 0:00:02.9]} 86... Nf4+ {[%clk 0:00:07.5]}
87. Kf3 {[%clk 0:00:03]} 87... e2 {[%clk 0:00:07.6]} 88. Qc6+ {[%clk 0:00:03.2]}
88... Ke7 {[%clk 0:00:07.9]} 89. Qb7+ {[%clk 0:00:03.2]} 89... Kf8 {[%clk
0:00:08.1]} 90. Qc8+ {[%clk 0:00:03.3]} 90... Kg7 {[%clk 0:00:08.6]} 91. Qb7+
{[%clk 0:00:03.1]} 91... Kh6 {[%clk 0:00:09]} 92. Qc6+ {[%clk 0:00:03.1]} 92...
Ng6 {[%clk 0:00:09]} 93. Qc8 {[%clk 0:00:03.1]} 93... e1=Q {[%clk 0:00:08]} 94.
Qf8+ {[%clk 0:00:02.1]} 94... Nxf8 {[%clk 0:00:07.8]} 0-1

[Event "Early-Titled-Tuesday-Blitz-October-24-2023"]
[Site "Chess.com"]
[Date "2023.10.24"]
[Round "3"]
[White "Giorno"]
[Black "Chessy222222"]
[Result "1/2-1/2"]
[WhiteElo "2556"]
[BlackElo "2362"]
[TimeControl "180+1"]
[EndTime "8:21:22 PDT"]
[Termination "Game drawn by agreement"]

1. Nf3 {[%clk 0:03:00.9]} 1... Nf6 {[%clk 0:02:59.4]} 2. c4 {[%clk 0:02:59.8]}
2... b6 {[%clk 0:02:58.1]} 3. Nc3 {[%clk 0:02:58.8]} 3... Bb7 {[%clk 0:02:58.2]}
4. d3 {[%clk 0:02:58]} 4... e6 {[%clk 0:02:58]} 5. e4 {[%clk 0:02:56.3]} 5... d6
{[%clk 0:02:56]} 6. Be2 {[%clk 0:02:55.8]} 6... Be7 {[%clk 0:02:52.6]} 7. O-O
{[%clk 0:02:56.7]} 7... O-O {[%clk 0:02:51.4]} 8. h3 {[%clk 0:02:55.2]} 8...
Nbd7 {[%clk 0:02:46.9]} 9. Be3 {[%clk 0:02:52.1]} 9... a6 {[%clk 0:02:41.6]} 10.
Qd2 {[%clk 0:02:47.8]} 10... c5 {[%clk 0:02:40.9]} 11. Rfe1 {[%clk 0:02:46.5]}
1/2-1/2

[Event "Early-Titled-Tuesday-Blitz-October-24-2023"]
[Site "Chess.com"]
[Date "2023.10.24"]
[Round "3"]
[White "abc_xyz4744"]
[Black "zajka-molotok"]
[Result "1-0"]
[WhiteElo "2391"]
[BlackElo "2548"]
[TimeControl "180+1"]
[EndTime "8:22:34 PDT"]
[Termination "abc_xyz4744 won by checkmate"]

1. e4 {[%clk 0:02:57.2]} 1... c6 {[%clk 0:02:57.6]} 2. d4 {[%clk 0:02:52]} 2...
d5 {[%clk 0:02:58.1]} 3. exd5 {[%clk 0:02:52.9]} 3... cxd5 {[%clk 0:02:58.6]} 4.
c4 {[%clk 0:02:53.8]} 4... Nf6 {[%clk 0:02:56.2]} 5. Nc3 {[%clk 0:02:52]} 5...
e6 {[%clk 0:02:56]} 6. Nf3 {[%clk 0:02:51.3]} 6... Bb4 {[%clk 0:02:55.4]} 7.
cxd5 {[%clk 0:02:50.4]} 7... Nxd5 {[%clk 0:02:51.4]} 8. Bd2 {[%clk 0:02:48.1]}
8... Nc6 {[%clk 0:02:49.1]} 9. Bd3 {[%clk 0:02:47.8]} 9... Nxc3 {[%clk
0:02:43.1]} 10. bxc3 {[%clk 0:02:48.7]} 10... Be7 {[%clk 0:02:43.5]} 11. O-O
{[%clk 0:02:48.8]} 11... O-O {[%clk 0:02:42.9]} 12. Qe2 {[%clk 0:02:45.1]} 12...
Bd7 {[%clk 0:02:40.1]} 13. Rab1 {[%clk 0:02:43.4]} 13... Na5 {[%clk 0:02:36.2]}
14. c4 {[%clk 0:02:41.3]} 14... Bc6 {[%clk 0:02:29.3]} 15. Ne5 {[%clk
0:02:38.1]} 15... Rc8 {[%clk 0:02:21.3]} 16. Bc3 {[%clk 0:02:35.8]} 16... b6
{[%clk 0:02:15]} 17. Bxa5 {[%clk 0:02:31.1]} 17... bxa5 {[%clk 0:02:15.9]} 18.
Nxc6 {[%clk 0:02:31.7]} 18... Rxc6 {[%clk 0:02:14.4]} 19. Qe4 {[%clk 0:02:32.3]}
19... g5 {[%clk 0:01:59.8]} 20. Qxh7# {[%clk 0:02:30.1]} 1-0

[Event "Early-Titled-Tuesday-Blitz-October-24-2023"]
[Site "Chess.com"]
[Date "2023.10.24"]
[Round "3"]
[White "RCone"]
[Black "PinaSoprano"]
[Result "1-0"]
[WhiteElo "2433"]
[BlackElo "2205"]
[TimeControl "180+1"]
[EndTime "8:22:50 PDT"]
[Termination "RCone won by checkmate"]

1. e4 {[%clk 0:03:00.9]} 1... c5 {[%clk 0:03:00.1]} 2. Nc3 {[%clk 0:03:00.4]}
2... d6 {[%clk 0:02:52]} 3. f4 {[%clk 0:02:59]} 3... Nf6 {[%clk 0:02:50.2]} 4.
Nf3 {[%clk 0:02:58.9]} 4... g6 {[%clk 0:02:50.1]} 5. Bb5+ {[%clk 0:02:58.5]}
5... Bd7 {[%clk 0:02:49]} 6. Bxd7+ {[%clk 0:02:58.6]} 6... Nbxd7 {[%clk
0:02:49.9]} 7. d3 {[%clk 0:02:59.1]} 7... Bg7 {[%clk 0:02:49.6]} 8. O-O {[%clk
0:02:59]} 8... O-O {[%clk 0:02:49.6]} 9. Qe1 {[%clk 0:02:59.4]} 9... a6 {[%clk
0:02:42.7]} 10. Qh4 {[%clk 0:02:59.9]} 10... e6 {[%clk 0:02:37]} 11. f5 {[%clk
0:02:57.6]} 11... exf5 {[%clk 0:02:30.9]} 12. exf5 {[%clk 0:02:57.5]} 12... Ne5
{[%clk 0:02:23]} 13. Bg5 {[%clk 0:02:54]} 13... h6 {[%clk 0:01:39.2]} 14. Bxh6
{[%clk 0:02:47]} 14... Nfg4 {[%clk 0:01:39.3]} 15. Bg5 {[%clk 0:02:34.1]} 15...
f6 {[%clk 0:01:38]} 16. fxg6 {[%clk 0:02:32.3]} 16... fxg5 {[%clk 0:01:33.2]}
17. Qh7# {[%clk 0:02:30.8]} 1-0

[Event "Early-Titled-Tuesday-Blitz-October-24-2023"]
[Site "Chess.com"]
[Date "2023.10.24"]
[Round "3"]
[White "ZeGood_ZeBad_ZeUgly"]
[Black "WPWPWP-2015"]
[Result "0-1"]
[WhiteElo "2338"]
[BlackElo "2558"]
[TimeControl "180+1"]
[EndTime "8:22:55 PDT"]
[Termination "WPWPWP-2015 won by resignation"]

1. e4 {[%clk 0:03:00.9]} 1... c5 {[%clk 0:02:59.2]} 2. Nf3 {[%clk 0:02:57.1]}
2... e6 {[%clk 0:02:59.5]} 3. d4 {[%clk 0:02:48.4]} 3... cxd4 {[%clk 0:02:59.4]}
4. Nxd4 {[%clk 0:02:49.3]} 4... Nc6 {[%clk 0:02:59.9]} 5. Nc3 {[%clk 0:02:46.5]}
5... Qc7 {[%clk 0:03:00.3]} 6. Be3 {[%clk 0:02:42.6]} 6... a6 {[%clk 0:02:59.7]}
7. a4 {[%clk 0:02:41.3]} 7... Nf6 {[%clk 0:02:57.9]} 8. Be2 {[%clk 0:02:31.6]}
8... Bb4 {[%clk 0:02:57.2]} 9. f3 {[%clk 0:02:28.7]} 9... d5 {[%clk 0:02:55.3]}
10. O-O {[%clk 0:01:55.5]} 10... dxe4 {[%clk 0:02:45.9]} 11. Nxe4 {[%clk
0:01:55.2]} 11... Nxe4 {[%clk 0:02:45]} 12. fxe4 {[%clk 0:01:56.1]} 12... Bd6
{[%clk 0:02:44.1]} 13. h3 {[%clk 0:01:37]} 13... O-O {[%clk 0:02:43.3]} 14. Bd3
{[%clk 0:01:22.8]} 14... Ne5 {[%clk 0:02:39.2]} 15. Qg4 {[%clk 0:01:18.4]} 15...
Nxg4 {[%clk 0:02:38.8]} 0-1

[Event "Early-Titled-Tuesday-Blitz-October-24-2023"]
[Site "Chess.com"]
[Date "2023.10.24"]
[Round "3"]
[White "Kostukov_Alex"]
[Black "Keeper0416"]
[Result "1-0"]
[WhiteElo "2431"]
[BlackElo "2575"]
[TimeControl "180+1"]
[EndTime "8:23:09 PDT"]
[Termination "Kostukov_Alex won by resignation"]

1. g3 {[%clk 0:02:58.3]} 1... g6 {[%clk 0:02:52.7]} 2. Bg2 {[%clk 0:02:57.7]}
2... Bg7 {[%clk 0:02:53.2]} 3. c4 {[%clk 0:02:58.2]} 3... c5 {[%clk 0:02:52.9]}
4. Nf3 {[%clk 0:02:58.6]} 4... Nc6 {[%clk 0:02:53.5]} 5. O-O {[%clk 0:02:58.9]}
5... Nf6 {[%clk 0:02:54.1]} 6. d4 {[%clk 0:02:57.8]} 6... cxd4 {[%clk
0:02:53.8]} 7. Nxd4 {[%clk 0:02:58.7]} 7... O-O {[%clk 0:02:54.5]} 8. c5 {[%clk
0:02:59.1]} 8... Qa5 {[%clk 0:02:51.2]} 9. Nb3 {[%clk 0:02:58.9]} 9... Qd8
{[%clk 0:02:47]} 10. Nc3 {[%clk 0:02:58.7]} 10... b6 {[%clk 0:02:46.7]} 11. e4
{[%clk 0:02:38.1]} 11... bxc5 {[%clk 0:02:44.7]} 12. e5 {[%clk 0:02:38.4]} 12...
Ne8 {[%clk 0:02:43.3]} 13. Bxc6 {[%clk 0:02:37.3]} 13... Rb8 {[%clk 0:02:38]}
14. Bg2 {[%clk 0:01:38.6]} 14... c4 {[%clk 0:02:26.7]} 15. Nd4 {[%clk
0:01:35.4]} 15... Bxe5 {[%clk 0:02:25.4]} 16. Nc6 {[%clk 0:01:35.3]} 16... Qb6
{[%clk 0:02:20.4]} 17. Nxe5 {[%clk 0:01:32.4]} 1-0

[Event "Early-Titled-Tuesday-Blitz-October-24-2023"]
[Site "Chess.com"]
[Date "2023.10.24"]
[Round "3"]
[White "nitpicker"]
[Black "Grandmaster1369"]
[Result "0-1"]
[WhiteElo "2262"]
[BlackElo "2793"]
[TimeControl "180+1"]
[EndTime "8:23:11 PDT"]
[Termination "Grandmaster1369 won by resignation"]

1. d4 {[%clk 0:03:00.9]} 1... Nf6 {[%clk 0:02:59.1]} 2. c4 {[%clk 0:03:00.7]}
2... e6 {[%clk 0:02:59.4]} 3. g3 {[%clk 0:03:00.4]} 3... Bb4+ {[%clk 0:02:59.3]}
4. Bd2 {[%clk 0:02:59.8]} 4... Qe7 {[%clk 0:02:58.9]} 5. Bg2 {[%clk 0:02:59.2]}
5... O-O {[%clk 0:02:58.5]} 6. Nf3 {[%clk 0:02:59.3]} 6... Bxd2+ {[%clk
0:02:56.8]} 7. Qxd2 {[%clk 0:02:58.1]} 7... d6 {[%clk 0:02:55.8]} 8. Nc3 {[%clk
0:02:56.2]} 8... e5 {[%clk 0:02:56.1]} 9. O-O {[%clk 0:02:51.9]} 9... Re8 {[%clk
0:02:56]} 10. Rfe1 {[%clk 0:01:58]} 10... e4 {[%clk 0:02:50.9]} 11. Ng5 {[%clk
0:01:56.3]} 11... Bf5 {[%clk 0:02:50.3]} 12. e3 {[%clk 0:01:42.4]} 12... h6
{[%clk 0:02:48.7]} 13. Nh3 {[%clk 0:01:39.8]} 13... g5 {[%clk 0:02:49.2]} 14.
Nd5 {[%clk 0:01:31.3]} 14... Nxd5 {[%clk 0:02:46.3]} 15. cxd5 {[%clk 0:01:31.8]}
15... Qd7 {[%clk 0:02:45]} 16. Qb4 {[%clk 0:01:20.7]} 16... b6 {[%clk
0:02:37.7]} 17. Rac1 {[%clk 0:01:17.9]} 17... Bxh3 {[%clk 0:02:37.8]} 18. Bxh3
{[%clk 0:01:18.1]} 18... Qxh3 {[%clk 0:02:38.7]} 19. Rxc7 {[%clk 0:01:18.4]}
19... Na6 {[%clk 0:02:38.1]} 0-1

[Event "Early-Titled-Tuesday-Blitz-October-24-2023"]
[Site "Chess.com"]
[Date "2023.10.24"]
[Round "3"]
[White "leandrojimenez"]
[Black "OPQRC"]
[Result "1-0"]
[WhiteElo "2437"]
[BlackElo "2578"]
[TimeControl "180+1"]
[EndTime "8:23:36 PDT"]
[Termination "leandrojimenez won by resignation"]

1. d4 {[%clk 0:03:00.9]} 1... d5 {[%clk 0:02:59.6]} 2. c4 {[%clk 0:03:00.8]}
2... dxc4 {[%clk 0:03:00.5]} 3. Nf3 {[%clk 0:03:00.7]} 3... Nf6 {[%clk
0:02:59.9]} 4. g3 {[%clk 0:03:00.4]} 4... e6 {[%clk 0:02:57.5]} 5. Bg2 {[%clk
0:03:00.5]} 5... Bb4+ {[%clk 0:02:57]} 6. Bd2 {[%clk 0:02:58.8]} 6... Bxd2+
{[%clk 0:02:56.5]} 7. Nbxd2 {[%clk 0:02:59.7]} 7... O-O {[%clk 0:02:56.1]} 8.
Nxc4 {[%clk 0:02:59.2]} 8... c5 {[%clk 0:02:54.4]} 9. dxc5 {[%clk 0:02:56]} 9...
Qc7 {[%clk 0:02:50.8]} 10. Qd6 {[%clk 0:02:55.3]} 10... Qxd6 {[%clk 0:02:43.8]}
11. Nxd6 {[%clk 0:02:54.9]} 11... Na6 {[%clk 0:02:35.9]} 12. Rc1 {[%clk
0:02:52.7]} 12... Rd8 {[%clk 0:02:35.7]} 13. Ne5 {[%clk 0:02:45.4]} 13... Rf8
{[%clk 0:02:02.2]} 14. O-O {[%clk 0:02:28.5]} 14... Rb8 {[%clk 0:02:01.1]} 15.
a3 {[%clk 0:02:21.2]} 15... Nc7 {[%clk 0:01:48.7]} 16. b4 {[%clk 0:02:20.1]}
16... Ncd5 {[%clk 0:01:48.1]} 17. c6 {[%clk 0:02:12.3]} 17... bxc6 {[%clk
0:01:37.7]} 18. Nxc6 {[%clk 0:02:11.9]} 18... Rb6 {[%clk 0:01:37.3]} 19. e4
{[%clk 0:02:10.6]} 19... Ba6 {[%clk 0:01:32.5]} 20. Rfe1 {[%clk 0:01:55.4]} 1-0